bitfinex-derivatives/quotes_BTCF0:USTF0_20251108
["timestamp","ask_amount","ask_price","bid_price","bid_amount"]
[1762581937290,0.0263048,102250.0,102240.0,1.0214529]
[1762581937493,4.8e-06,102250.0,102240.0,1.21995247]
[1762581937690,4.8e-06,102250.0,102240.0,2.06447247]
[1762581937897,1.11e-06,102260.0,102250.0,0.1251933]
[1762581938103,1.11e-06,102260.0,102250.0,0.4859933]
[1762581938898,1.11e-06,102260.0,102250.0,0.68449287]
[1762581939400,1.11e-06,102260.0,102250.0,0.92997287]
[1762581939604,0.00100111,102260.0,102250.0,0.93097287]
[1762581940200,0.00100111,102260.0,102250.0,0.68649287]
[1762581941900,0.00100111,102260.0,102250.0,0.93097287]
[1762581942103,0.00100111,102260.0,102250.0,0.68649287]
[1762581942299,0.00100111,102260.0,102250.0,0.93097287]
[1762581943105,0.00100111,102260.0,102250.0,0.68649287]
[1762581943292,0.00100111,102260.0,102250.0,0.93097287]
[1762581944204,0.0575,102280.0,102270.0,0.1228742]
[1762581944504,0.0575,102280.0,102270.0,1.04297377]
[1762581945207,0.15472141,102290.0,102280.0,0.02504]
[1762581945408,0.05690631,102290.0,102280.0,0.4836646]
[1762581946407,0.05990631,102290.0,102280.0,0.4846646]
[1762581946607,0.06290631,102290.0,102280.0,0.4856646]
[1762581948013,0.16072141,102290.0,102280.0,0.38784]
[1762581949498,0.08431364,102290.0,102280.0,0.4856646]
[1762581950209,0.08431364,102290.0,102280.0,0.38784]
[1762581950410,0.08431364,102290.0,102280.0,0.4856646]
[1762581951005,0.18212874,102290.0,102280.0,0.38784]
[1762581951513,0.08431364,102290.0,102280.0,0.4856646]
[1762581953312,0.08431364,102290.0,102280.0,1.0335446]
[1762581956114,0.06290631,102290.0,102280.0,1.0335446]
[1762581958409,0.16072141,102290.0,102280.0,1.0335446]
[1762581959004,0.06290631,102290.0,102280.0,1.0335446]
[1762581960507,0.06290631,102290.0,102280.0,1.0383646]
[1762581960508,0.02822631,102290.0,102280.0,1.0383646]
[1762581960708,0.06258631,102290.0,102280.0,1.0335446]
[1762581961515,0.04955631,102290.0,102280.0,1.0335446]
[1762581961722,0.00614631,102290.0,102280.0,1.0383646]
[1762581962517,0.00614631,102290.0,102280.0,1.5487646]
[1762581962723,0.00614631,102290.0,102280.0,0.8271646]
[1762581962924,0.00614631,102290.0,102280.0,1.5487646]
[1762581963721,0.05714,102310.0,102300.0,0.1105455]
[1762581963918,0.05714,102310.0,102300.0,0.4713455]
[1762581964223,0.05714,102310.0,102300.0,0.57203957]
[1762581964522,0.05714,102310.0,102300.0,0.66984507]
[1762581964921,0.05914,102310.0,102300.0,0.67084507]
[1762581965124,0.05914,102310.0,102300.0,0.57303957]
[1762581965419,0.156936,102310.0,102300.0,0.57303957]
[1762581965614,0.158936,102310.0,102300.0,0.57303957]
[1762581966016,0.06114,102310.0,102300.0,0.67084507]
[1762581966513,0.05914,102310.0,102300.0,0.66984507]
[1762581966718,0.06214,102310.0,102300.0,0.67084507]
[1762581967712,0.09698842,102310.0,102300.0,1.03164507]
[1762581967919,0.06214,102310.0,102300.0,1.03164507]
[1762581968120,0.005,102310.0,102300.0,1.03164507]
[1762581972326,0.005,102310.0,102300.0,0.94528308]
[1762581973420,0.00014631,102320.0,102310.0,0.110536]
[1762581973615,0.00014631,102320.0,102310.0,0.69561116]
[1762581973922,0.05713631,102320.0,102310.0,0.58347358]
[1762581974525,0.06113631,102320.0,102310.0,0.58447358]
[1762581974830,0.06413631,102320.0,102310.0,0.58447358]
[1762581975222,0.16192271,102320.0,102310.0,0.48667758]
[1762581976128,0.15492271,102320.0,102310.0,0.48130758]
[1762581976330,0.15492271,102320.0,102310.0,0.11413758]
[1762581976630,0.51572271,102320.0,102310.0,0.11413758]
[1762581976827,0.51572271,102320.0,102310.0,0.12687758]
[1762581977125,0.51572271,102320.0,102310.0,0.001]
[1762581977431,0.51672271,102320.0,102310.0,0.11313758]
[1762581977823,0.51672271,102320.0,102310.0,0.11213758]
[1762581978018,0.154786,102310.0,102300.0,0.56042]
[1762581978227,0.154786,102310.0,102300.0,0.22268308]
[1762581978824,0.05699,102310.0,102300.0,0.22268308]
[1762581979129,0.05699,102310.0,102300.0,0.58348308]
[1762581979326,0.05699,102310.0,102300.0,0.22268308]
[1762581979530,0.05699,102310.0,102300.0,0.58348308]
[1762581980328,0.05799,102310.0,102300.0,0.58348308]
[1762581980528,0.03666,102310.0,102300.0,0.58348308]
[1762581980730,0.05799,102310.0,102300.0,0.58348308]
[1762581981531,0.02363,102310.0,102300.0,0.58348308]
[1762581982626,0.001,102310.0,102300.0,0.58348308]
[1762581983628,0.01317631,102320.0,102310.0,0.110536]
[1762581983629,0.00014631,102320.0,102310.0,0.110536]
[1762581983832,0.00014631,102320.0,102310.0,0.69561116]
[1762581985530,0.00114631,102320.0,102310.0,0.69561116]
[1762581986335,0.00114631,102320.0,102310.0,0.72359478]
[1762581986932,0.01303,102330.0,102320.0,0.1041564]
[1762581987128,0.03481,102330.0,102320.0,0.72358518]
[1762581988036,0.05868,102330.0,102320.0,0.62579878]
[1762581988235,0.1564569,102330.0,102320.0,0.62579878]
[1762581988436,0.1564569,102330.0,102320.0,0.54171252]
[1762581988634,0.1584569,102330.0,102320.0,0.54171252]
[1762581989045,0.06068,102330.0,102320.0,0.54171252]
[1762581990244,0.1584569,102330.0,102320.0,0.54171252]
[1762581991141,0.1584569,102330.0,102320.0,0.18091252]
[1762581991338,0.19330532,102330.0,102320.0,0.72855252]
[1762581991637,0.55410532,102330.0,102320.0,0.72855252]
[1762581992041,0.55410532,102330.0,102320.0,0.18091252]
[1762581992344,0.60643089,102330.0,102320.0,0.16817252]
[1762581992846,0.55410532,102330.0,102320.0,0.16817252]
[1762581993043,0.60643089,102330.0,102320.0,0.16817252]
[1762581994147,0.60643089,102330.0,102320.0,0.26595892]
[1762581994445,0.60643089,102330.0,102320.0,0.27232892]
[1762581995046,0.60643089,102330.0,102320.0,0.27869892]
[1762581998046,0.60643089,102330.0,102320.0,0.18091252]
[1762581998446,0.57158247,102330.0,102320.0,0.18091252]
[1762581998948,0.57158247,102330.0,102320.0,0.27869892]
[1762581999146,0.47380557,102330.0,102320.0,0.27869892]
[1762581999457,0.50874823,102330.0,102320.0,0.27869892]
[1762582000143,0.55419956,102330.0,102320.0,0.18091252]
[1762582000343,0.19339956,102330.0,102320.0,0.18091252]
[1762582000542,0.19339956,102330.0,102320.0,0.27869892]
[1762582000848,0.19339956,102330.0,102320.0,0.18091252]
[1762582002746,0.19339956,102330.0,102320.0,0.27869892]
[1762582003741,0.19339956,102330.0,102320.0,0.18091252]
[1762582005147,0.19339956,102330.0,102320.0,0.01274]
[1762582005348,0.19339956,102330.0,102320.0,0.18091252]
[1762582005537,0.24572513,102330.0,102320.0,0.18091252]
[1762582005851,0.60652513,102330.0,102320.0,0.18091252]
[1762582006348,0.57158247,102330.0,102320.0,0.18091252]
[1762582006546,0.60652894,102330.0,102320.0,0.27869892]
[1762582006743,0.24572894,102330.0,102320.0,0.27869892]
[1762582007655,0.14795204,102330.0,102320.0,0.27869892]
[1762582007952,0.24572884,102330.0,102320.0,0.27869892]
[1762582009152,0.14795204,102330.0,102320.0,0.36278518]
[1762582009447,0.24572884,102330.0,102320.0,0.26499878]
[1762582009754,0.24572884,102330.0,102320.0,0.36278518]
[1762582009957,0.14795204,102330.0,102320.0,0.36278518]
[1762582011057,0.24572884,102330.0,102320.0,0.36278518]
[1762582012056,0.24572884,102330.0,102320.0,0.26499878]
[1762582012246,0.14795204,102330.0,102320.0,0.36278518]
[1762582013158,0.24572884,102330.0,102320.0,0.36278518]
[1762582013653,0.14795204,102330.0,102320.0,0.36278518]
[1762582013856,0.14795204,102330.0,102320.0,0.72358518]
[1762582014058,0.09562647,102330.0,102320.0,0.72358518]
[1762582015257,0.19340327,102330.0,102320.0,0.62579878]
[1762582015556,0.09562647,102330.0,102320.0,0.72358518]
[1762582016050,0.19340327,102330.0,102320.0,0.72358518]
[1762582016457,0.19140327,102330.0,102320.0,0.72358518]
[1762582016759,0.19240327,102330.0,102320.0,0.72358518]
[1762582016959,0.19140327,102330.0,102320.0,0.72358518]
[1762582017857,0.09362647,102330.0,102320.0,0.72358518]
[1762582018259,0.19140327,102330.0,102320.0,0.62579878]
[1762582018458,0.19140327,102330.0,102320.0,0.72358518]
[1762582019455,0.09362647,102330.0,102320.0,0.72358518]
[1762582021065,0.19140327,102330.0,102320.0,0.62579878]
[1762582021362,0.19140327,102330.0,102320.0,0.72358518]
[1762582021657,0.18996188,102340.0,102330.0,0.1105168]
[1762582021862,0.42615557,102360.0,102350.0,0.0977577]
[1762582022160,0.44884557,102370.0,102360.0,0.05391]
[1762582022359,0.47127557,102370.0,102360.0,0.30616878]
[1762582022559,0.40514,102370.0,102360.0,0.40391698]
[1762582023157,0.41895,102370.0,102360.0,0.40391698]
[1762582023656,0.41895,102370.0,102360.0,0.40491698]
[1762582023963,0.42795,102370.0,102360.0,0.30716878]
[1762582024163,0.06715,102370.0,102360.0,0.30716878]
[1762582024362,0.06715,102370.0,102360.0,0.66796878]
[1762582024657,0.06715,102370.0,102360.0,0.76571698]
[1762582024865,0.05334,102370.0,102360.0,0.76571698]
[1762582025257,0.05334,102370.0,102360.0,0.66796878]
[1762582026364,0.05334,102370.0,102360.0,0.76571698]
[1762582027364,0.05159631,102380.0,102370.0,0.05092]
[1762582027665,0.05159631,102380.0,102370.0,0.21909252]
[1762582028265,0.05159631,102380.0,102370.0,0.57989252]
[1762582028474,0.05459631,102380.0,102370.0,0.57989252]
[1762582029658,0.05859631,102380.0,102370.0,0.67763112]
[1762582030059,0.05859631,102380.0,102370.0,0.57989252]
[1762582030663,0.05659631,102380.0,102370.0,0.57989252]
[1762582032073,0.16813541,102380.0,102370.0,0.57989252]
[1762582032370,0.52893541,102380.0,102370.0,0.10623626]
[1762582032964,0.52893541,102380.0,102370.0,0.12863626]
[1762582034071,0.52893541,102380.0,102370.0,0.21272252]
[1762582034470,0.52893541,102380.0,102370.0,0.12863626]
[1762582036072,0.52893541,102380.0,102370.0,0.21272252]
[1762582036269,0.52182541,102380.0,102370.0,0.21272252]
[1762582037074,0.52182541,102380.0,102370.0,0.12863626]
[1762582039562,0.52182541,102380.0,102370.0,0.08408626]
[1762582039771,0.05815,102360.0,102350.0,1.00609781]
[1762582040074,0.1558982,102360.0,102350.0,1.17427033]
[1762582040273,0.1558982,102360.0,102350.0,0.67142033]
[1762582040469,0.1558982,102360.0,102350.0,0.12878257]
[1762582041265,0.5166982,102360.0,102350.0,0.13078257]
[1762582041769,0.5166982,102360.0,102350.0,0.22854027]
[1762582042174,0.5166982,102360.0,102350.0,0.31262653]
[1762582042380,0.1558982,102360.0,102350.0,0.31262653]
[1762582042870,0.5166982,102360.0,102350.0,0.08623257]
[1762582043080,0.5176982,102360.0,102350.0,0.08623257]
[1762582043487,0.5176982,102360.0,102350.0,0.08423257]
[1762582044472,0.5206982,102360.0,102350.0,0.00014631]
[1762582044670,0.5206982,102360.0,102350.0,0.08423257]
[1762582045275,0.1352977,102350.0,102340.0,0.5474]
[1762582045474,0.63250953,102350.0,102340.0,0.63148626]
[1762582045873,0.65009044,102350.0,102340.0,0.63148626]
[1762582046069,0.56600418,102350.0,102340.0,0.63148626]
[1762582046276,0.63242962,102350.0,102340.0,0.63148626]
[1762582046579,0.63342962,102350.0,102340.0,0.5474]
[1762582047082,0.63342962,102350.0,102340.0,0.63148626]
[1762582047671,0.63342962,102350.0,102340.0,0.5474]
[1762582047881,0.0977673,102340.0,102330.0,0.00014631]
[1762582048066,0.0977673,102340.0,102330.0,0.08423257]
[1762582048067,0.54265356,102340.0,102330.0,0.08423257]
[1762582048377,0.4585673,102340.0,102330.0,0.00014631]
[1762582049572,0.51081783,102340.0,102330.0,0.00014631]
[1762582049974,0.51081783,102340.0,102330.0,0.00214631]
[1762582050175,0.51081783,102340.0,102330.0,0.01600631]
[1762582050375,0.51081783,102340.0,102330.0,0.17408374]
[1762582051279,0.51081783,102340.0,102330.0,0.00214631]
[1762582051280,0.4585673,102340.0,102330.0,0.00214631]
[1762582051482,0.62299526,102340.0,102330.0,0.00214631]
[1762582052081,0.52847378,102340.0,102330.0,0.00214631]
[1762582052272,0.51074548,102340.0,102330.0,0.00214631]
[1762582052674,0.4585673,102340.0,102330.0,0.00214631]
[1762582053183,0.51074114,102340.0,102330.0,0.00214631]
[1762582054283,0.51074114,102340.0,102330.0,1e-08]
[1762582056580,0.0977768,102330.0,102320.0,0.00014631]
[1762582056783,0.49332081,102330.0,102320.0,0.00014631]
[1762582056972,0.49332081,102330.0,102320.0,0.01400631]
[1762582057785,0.49332081,102330.0,102320.0,0.01500631]
[1762582059273,0.4585768,102330.0,102320.0,0.01700631]
[1762582059889,0.49332081,102330.0,102320.0,0.01700631]
[1762582060091,0.4585768,102330.0,102320.0,0.01700631]
[1762582060289,0.49332081,102330.0,102320.0,0.01700631]
[1762582060792,0.49332081,102330.0,102320.0,0.03968631]
[1762582060994,0.49332081,102330.0,102320.0,0.06290631]
[1762582062094,0.49332081,102330.0,102320.0,0.03968631]
[1762582062293,0.49332081,102330.0,102320.0,0.03999631]
[1762582062593,0.49332081,102330.0,102320.0,0.06101631]
[1762582063090,0.49332081,102330.0,102320.0,0.03999631]
[1762582063295,0.49332081,102330.0,102320.0,0.01700631]
[1762582064696,0.49332081,102330.0,102320.0,0.06101631]
[1762582065195,0.54549465,102330.0,102320.0,0.06101631]
[1762582069201,0.51075064,102330.0,102320.0,0.01700631]
[1762582069606,0.54557356,102330.0,102320.0,0.01700631]
[1762582069999,0.51075064,102330.0,102320.0,0.01700631]
[1762582070694,0.51075064,102330.0,102320.0,0.03999631]
[1762582071002,0.51075064,102330.0,102320.0,0.06101631]
[1762582072707,0.4585768,102330.0,102320.0,0.06101631]
[1762582073910,0.52848328,102330.0,102320.0,0.06101631]
[1762582074401,0.1253164,102320.0,102300.0,0.12419743]
[1762582074607,0.58711821,102310.0,102300.0,0.16820743]
[1762582074799,0.55220525,102310.0,102300.0,0.05603]
[1762582074999,0.55220525,102310.0,102300.0,0.16820743]
[1762582075301,0.8675459,102310.0,102300.0,0.02299]
[1762582075506,0.8675459,102310.0,102290.0,0.67351743]
[1762582075507,0.1390455,102300.0,102290.0,0.71767374]
[1762582075808,0.54722667,102300.0,102290.0,0.71767374]
[1762582076007,0.54322667,102300.0,102290.0,0.71767374]
[1762582076406,0.54322667,102300.0,102290.0,0.00014631]
[1762582076610,0.54322667,102300.0,102270.0,0.05693558]
[1762582076611,0.1390646,102280.0,102270.0,0.05693558]
[1762582076801,0.91993471,102280.0,102270.0,0.00012558]
[1762582078111,0.91993471,102280.0,102270.0,0.02219558]
[1762582078313,0.91993471,102280.0,102270.0,0.04422558]
[1762582078515,0.92293471,102280.0,102270.0,0.04422558]
[1762582078706,0.92493471,102280.0,102270.0,0.04422558]
[1762582080915,0.91802471,102280.0,102270.0,0.17013301]
[1762582082215,0.95283097,102280.0,102270.0,0.17013301]
[1762582083015,0.95283097,102280.0,102270.0,0.05795558]
[1762582083214,0.95283097,102280.0,102270.0,0.17013301]
[1762582084911,0.8656646,102280.0,102270.0,0.15640301]
[1762582085109,0.8656646,102280.0,102270.0,0.13437301]
[1762582085715,0.1433338,102260.0,102250.0,0.17000743]
[1762582085913,0.5110438,102260.0,102250.0,0.0441]
[1762582086216,0.1433433,102250.0,102240.0,0.71772743]
[1762582086416,0.5041433,102250.0,102240.0,0.71772743]
[1762582086604,0.50423628,102250.0,102240.0,0.71772743]
[1762582087010,0.51103628,102250.0,102240.0,0.60555]
[1762582087213,0.51103628,102250.0,102240.0,0.59182]
[1762582087411,0.5448119,102250.0,102240.0,0.59182]
[1762582088119,0.51203628,102250.0,102240.0,0.54772]
[1762582089717,0.5468119,102250.0,102240.0,0.54772]
[1762582092119,0.5468119,102250.0,102240.0,0.59182]
[1762582092517,0.5468119,102250.0,102240.0,0.60555]
[1762582092723,0.50523628,102250.0,102240.0,0.60555]
[1762582093314,0.50523628,102250.0,102240.0,0.80418264]
[1762582093516,0.50523628,102250.0,102240.0,0.25646264]
[1762582093711,0.50523628,102250.0,102240.0,0.24273264]
[1762582093712,0.51815628,102250.0,102240.0,0.24273264]
[1762582094030,0.51815628,102250.0,102240.0,0.0441]
[1762582094620,0.51815628,102250.0,102230.0,0.01373]
[1762582094621,0.1551829,102240.0,102230.0,0.02207]
[1762582094919,0.1543924,102230.0,102220.0,0.05783]
[1762582095122,0.5151924,102230.0,102220.0,0.05783]
[1762582095914,0.5141924,102230.0,102220.0,0.05783]
[1762582096526,0.149282,102220.0,102210.0,0.60583]
[1762582096714,0.51996955,102220.0,102210.0,0.60583]
[1762582097522,0.50425728,102220.0,102210.0,0.60583]
[1762582098423,0.09796728,102220.0,102210.0,0.96663]
[1762582098629,0.09896728,102220.0,102210.0,0.60683]
[1762582099025,0.12212728,102220.0,102210.0,0.60683]
[1762582099327,0.14445728,102220.0,102210.0,0.60683]
[1762582099735,0.09896728,102220.0,102210.0,0.60683]
[1762582099920,0.14445728,102220.0,102210.0,0.60683]
[1762582100120,0.50525728,102220.0,102210.0,0.60683]
[1762582101226,0.51116728,102220.0,102210.0,0.60683]
[1762582102125,0.50525728,102220.0,102210.0,0.60683]
[1762582102326,0.50725728,102220.0,102210.0,0.60683]
[1762582102628,0.50825728,102220.0,102210.0,0.60583]
[1762582105728,0.50825728,102220.0,102210.0,0.90235424]
[1762582106930,0.50825728,102220.0,102210.0,0.80446264]
[1762582107131,0.50825728,102220.0,102210.0,0.60583]
[1762582107324,0.50825728,102220.0,102210.0,0.80446264]
[1762582108427,0.50825728,102220.0,102210.0,0.81611139]
[1762582109332,0.50825728,102220.0,102210.0,0.71821979]
[1762582110433,0.50825728,102220.0,102210.0,0.69012262]
[1762582110828,0.50825728,102220.0,102210.0,0.60583]
[1762582111030,0.5925499,102220.0,102210.0,0.69012262]
[1762582111231,0.5489429,102220.0,102210.0,0.69012262]
[1762582111432,0.60130301,102220.0,102210.0,0.69012262]
[1762582113135,0.59539301,102220.0,102210.0,0.69012262]
[1762582114133,0.56061739,102220.0,102210.0,0.60583]
[1762582114338,0.56652739,102220.0,102210.0,0.69012262]
[1762582114741,0.59545434,102220.0,102210.0,0.69012262]
[1762582115238,0.56061739,102220.0,102210.0,0.69012262]
[1762582115630,0.59547711,102220.0,102210.0,0.69012262]
[1762582115831,0.56061739,102220.0,102210.0,0.69012262]
[1762582116134,0.56061739,102220.0,102210.0,0.60583]
[1762582116342,0.56061739,102220.0,102210.0,0.69012262]
[1762582117041,0.56061739,102220.0,102210.0,0.60583]
[1762582117340,0.56061739,102220.0,102210.0,0.69012262]
[1762582119034,0.64491001,102220.0,102210.0,0.69012262]
[1762582119338,0.56061739,102220.0,102210.0,0.69012262]
[1762582120038,0.56652739,102220.0,102210.0,0.69012262]
[1762582120641,0.56061739,102220.0,102210.0,0.69012262]
[1762582121630,0.65082001,102220.0,102210.0,0.69012262]
[1762582122241,0.58407376,102220.0,102210.0,0.69012262]
[1762582122438,0.66245638,102220.0,102210.0,0.69012262]
[1762582122838,0.57816376,102220.0,102210.0,0.69012262]
[1762582123145,0.58407376,102220.0,102210.0,0.69012262]
[1762582123944,0.66836638,102220.0,102210.0,0.5921]
[1762582124146,0.5984599,102220.0,102210.0,0.57007]
[1762582124340,0.73515344,102220.0,102210.0,0.548]
[1762582124543,0.65086082,102220.0,102210.0,0.548]
[1762582124940,0.5984599,102220.0,102210.0,0.548]
[1762582125140,0.68587755,102220.0,102210.0,0.548]
[1762582125545,0.68587755,102220.0,102210.0,0.67730262]
[1762582125750,0.57812884,102220.0,102210.0,0.69049262]
[1762582127845,0.57812884,102220.0,102210.0,0.14249262]
[1762582131642,0.66242146,102220.0,102210.0,0.14249262]
[1762582131843,0.66242146,102220.0,102210.0,0.12930262]
[1762582132043,0.66833146,102220.0,102210.0,0.12930262]
[1762582132445,0.75262408,102220.0,102210.0,0.04501]
[1762582132640,0.66833146,102220.0,102210.0,0.04501]
[1762582133144,0.75262408,102220.0,102210.0,0.04501]
[1762582133441,0.1413116,102210.0,102200.0,0.14256601]
[1762582133647,0.55452244,102210.0,102200.0,0.05827339]
[1762582133848,0.55452244,102210.0,102200.0,0.14256601]
[1762582134547,0.55552244,102210.0,102200.0,0.14256601]
[1762582134751,0.55652244,102210.0,102200.0,0.14256601]
[1762582139843,0.55652244,102210.0,102200.0,0.22685863]
[1762582140649,0.23068317,102210.0,102200.0,0.22685863]
[1762582140846,0.59148317,102210.0,102200.0,0.22685863]
[1762582141245,0.55652244,102210.0,102200.0,0.22685863]
[1762582141448,0.59148647,102210.0,102200.0,0.22685863]
[1762582141646,0.59148647,102210.0,102200.0,0.32475983]
[1762582141647,0.23068647,102210.0,102200.0,0.32475983]
[1762582141847,0.0998916,102210.0,102200.0,0.76985245]
[1762582142054,0.1872696,102210.0,102200.0,0.76985245]
[1762582142256,0.1433916,102210.0,102200.0,0.41907339]
[1762582142548,0.1433916,102210.0,102200.0,0.05827339]
[1762582142549,0.53915876,102210.0,102200.0,0.05827339]
[1762582142753,0.55660244,102210.0,102200.0,0.22685863]
[1762582142950,0.19580244,102210.0,102200.0,0.22685863]
[1762582143146,0.23076279,102210.0,102200.0,0.32475983]
[1762582143343,0.18726279,102210.0,102200.0,0.32475983]
[1762582143544,0.20951279,102210.0,102200.0,0.32475983]
[1762582144151,0.23076279,102210.0,102200.0,0.32475983]
[1762582144351,0.23076279,102210.0,102200.0,0.22685863]
[1762582145055,0.17835195,102210.0,102200.0,0.22685863]
[1762582145454,0.53915195,102210.0,102200.0,0.22685863]
[1762582145650,0.59156279,102210.0,102200.0,0.22685863]
[1762582145954,0.17835195,102210.0,102200.0,0.32475983]
[1762582146949,0.13485195,102210.0,102200.0,0.32475983]
[1762582147157,0.13485195,102210.0,102200.0,0.68555983]
[1762582148058,0.13485195,102210.0,102200.0,0.76985245]
[1762582148247,0.03696035,102210.0,102200.0,0.68555983]
[1762582148451,0.03696035,102210.0,102200.0,1.61445245]
[1762582148655,0.0350797,102220.0,102210.0,0.32372684]
[1762582148850,0.0350797,102220.0,102210.0,0.68452684]
[1762582149250,0.51122975,102230.0,102220.0,0.142222]
[1762582149251,0.05255715,102230.0,102220.0,0.142222]
[1762582149555,0.14151871,102230.0,102220.0,0.05725]
[1762582149751,0.64493217,102230.0,102220.0,0.04434]
[1762582149957,0.66239289,102230.0,102220.0,0.04434]
[1762582150255,0.66243319,102230.0,102220.0,0.04434]
[1762582150656,0.152412,102220.0,102210.0,0.12863262]
[1762582150851,0.64996692,102220.0,102210.0,0.04434]
[1762582151352,0.0978916,102210.0,102200.0,0.09755601]
[1762582151559,0.65195031,102210.0,102200.0,0.14189601]
[1762582151862,0.56765769,102210.0,102200.0,0.14189601]
[1762582152461,0.56765769,102210.0,102200.0,0.12870601]
[1762582153059,0.56865769,102210.0,102200.0,0.12870601]
[1762582153353,0.55664769,102210.0,102200.0,0.05832339]
[1762582153546,0.55664769,102210.0,102200.0,0.22690863]
[1762582153947,0.55664769,102210.0,102200.0,0.14261601]
[1762582154145,0.55664769,102210.0,102200.0,0.22690863]
[1762582154352,0.55664769,102210.0,102200.0,0.14261601]
[1762582154549,0.55664769,102210.0,102200.0,0.05832339]
[1762582154753,0.55664769,102210.0,102200.0,0.14261601]
[1762582155960,0.55664769,102210.0,102200.0,0.22690863]
[1762582156354,0.55664769,102210.0,102200.0,0.05832339]
[1762582157359,0.55664769,102210.0,102200.0,0.19008019]
[1762582157954,0.55664769,102210.0,102200.0,0.28798139]
[1762582158259,0.55664769,102210.0,102200.0,0.19008019]
[1762582158656,0.55664769,102210.0,102200.0,0.05832339]
[1762582158657,0.56965769,102210.0,102200.0,0.05832339]
[1762582158864,0.55664769,102210.0,102200.0,0.05832339]
[1762582160354,0.55664769,102210.0,102200.0,0.19008019]
[1762582160959,0.56965769,102210.0,102200.0,0.19008019]
[1762582161266,0.5172016,102210.0,102200.0,0.04541339]
[1762582162251,0.5172016,102210.0,102200.0,0.05832339]
[1762582162855,0.5172016,102210.0,102200.0,0.04541339]
[1762582166855,0.5172016,102210.0,102200.0,0.00107339]
[1762582167063,0.56969799,102210.0,102200.0,0.00107339]
[1762582167466,0.1556507,102190.0,102180.0,0.02175]
[1762582167659,0.49294423,102190.0,102180.0,0.04386]
[1762582168459,0.54537607,102190.0,102180.0,0.04386]
[1762582169263,0.54637607,102190.0,102180.0,0.04386]
[1762582169861,0.54637607,102190.0,102180.0,0.04486]
[1762582171264,0.49394423,102190.0,102180.0,0.001]
[1762582171463,0.49401441,102190.0,102180.0,0.001]
[1762582171863,0.54644625,102190.0,102180.0,0.001]
[1762582172565,0.02319,102180.0,102170.0,0.001]
[1762582172766,0.1438399,102170.0,102160.0,0.0574502]
[1762582172971,0.41329685,102180.0,102170.0,0.1196799]
[1762582173156,0.53440715,102180.0,102170.0,0.25630682]
[1762582173357,0.04591,102170.0,102160.0,0.71504212]
[1762582173657,0.40685631,102180.0,102170.0,0.05745]
[1762582173857,0.50577661,102180.0,102170.0,0.05945]
[1762582174059,0.50577661,102180.0,102170.0,0.25830682]
[1762582175270,0.50477661,102180.0,102170.0,0.25830682]
[1762582175483,0.0979299,102170.0,102160.0,0.0217502]
[1762582175767,0.56395044,102170.0,102160.0,0.25730702]
[1762582176272,0.5115999,102170.0,102160.0,0.25730702]
[1762582176570,0.56495044,102170.0,102160.0,0.25730702]
[1762582176762,0.5125999,102170.0,102160.0,0.25730702]
[1762582177070,0.5145999,102170.0,102160.0,0.0574502]
[1762582177755,0.5076399,102170.0,102160.0,0.0574502]
[1762582178270,0.5086399,102170.0,102160.0,0.0574502]
[1762582178473,0.5155999,102170.0,102160.0,0.0574502]
[1762582178770,0.55041785,102170.0,102160.0,0.0574502]
[1762582180870,0.50450785,102170.0,102160.0,2e-07]
[1762582181062,0.1497691,102150.0,102140.0,3e-08]
[1762582181260,0.8713691,102150.0,102140.0,3e-08]
[1762582181871,0.8713691,102150.0,102140.0,0.05745003]
[1762582182068,0.87148302,102150.0,102140.0,0.05745003]
[1762582182376,0.14397302,102150.0,102140.0,0.71506555]
[1762582182668,0.04702392,102150.0,102140.0,0.71506555]
[1762582182863,0.00111392,102150.0,102140.0,1.55982555]
[1762582183063,0.00511392,102150.0,102140.0,1.56082555]
[1762582183571,0.00404012,102150.0,102140.0,1.56082555]
[1762582183768,0.49354015,102180.0,102170.0,0.0979299]
[1762582183964,0.1212122,102180.0,102170.0,0.71436672]
[1762582184163,0.1423822,102180.0,102170.0,0.71436672]
[1762582184466,0.14248867,102180.0,102170.0,0.71436672]
[1762582184966,0.14548867,102180.0,102170.0,0.5155099]
[1762582185961,0.14548867,102180.0,102170.0,0.1547099]
[1762582186168,0.14848867,102180.0,102170.0,0.1547099]
[1762582187058,0.14848867,102180.0,102170.0,0.05678]
[1762582187458,0.14848867,102180.0,102170.0,0.1547099]
[1762582187662,0.14848867,102180.0,102170.0,0.05678]
[1762582189272,0.14848867,102180.0,102170.0,0.1547099]
[1762582189459,0.14848867,102180.0,102170.0,0.5155099]
[1762582189859,0.05056647,102180.0,102170.0,0.5155099]
[1762582190064,0.12731677,102180.0,102170.0,0.05678]
[1762582190272,0.12731677,102180.0,102170.0,0.25563682]
[1762582190469,0.12731677,102180.0,102170.0,0.35356672]
[1762582190674,0.14848677,102180.0,102170.0,0.05678]
[1762582191066,0.14848677,102180.0,102170.0,0.25563682]
[1762582191674,0.14848677,102180.0,102170.0,0.35356672]
[1762582192567,0.02939647,102180.0,102170.0,0.71436672]
[1762582192769,0.00610647,102180.0,102170.0,0.71436672]
[1762582192969,0.10402677,102180.0,102170.0,0.71436672]
[1762582193174,0.00610647,102180.0,102170.0,1.55904672]
[1762582193470,0.00014631,102190.0,102180.0,0.1547003]
[1762582193772,0.00014631,102190.0,102180.0,0.95899712]
[1762582194772,0.00714631,102190.0,102180.0,0.71435712]
[1762582195072,0.00714631,102190.0,102180.0,0.95899712]
[1762582195264,0.00714631,102190.0,102180.0,0.71435712]
[1762582195462,0.00714631,102190.0,102180.0,1.55899712]
[1762582195771,0.51103924,102220.0,102210.0,0.05678]
[1762582195772,0.53796665,102220.0,102210.0,0.05678]
[1762582196377,0.17716665,102220.0,102210.0,0.1546716]
[1762582196969,0.17716665,102220.0,102210.0,0.05678]
[1762582197275,0.1423487,102220.0,102210.0,0.05678]
[1762582197671,0.1433487,102220.0,102210.0,0.1546716]
[1762582198576,0.1453487,102220.0,102210.0,0.35352842]
[1762582198968,0.1453487,102220.0,102210.0,0.25563682]
[1762582199167,0.1453487,102220.0,102210.0,0.35352842]
[1762582199670,0.1453487,102220.0,102210.0,0.25563682]
[1762582200275,0.1453487,102220.0,102210.0,0.35352842]
[1762582200470,0.04746,102220.0,102210.0,0.71432842]
[1762582200676,0.145342,102220.0,102210.0,0.71432842]
[1762582202075,0.04746,102220.0,102210.0,0.71432842]
[1762582203264,0.003,102220.0,102210.0,0.71432842]
[1762582203466,0.003,102220.0,102210.0,0.95892842]
[1762582203874,0.003,102220.0,102210.0,0.71432842]
[1762582204277,0.100882,102220.0,102210.0,0.71432842]
[1762582204573,0.003,102220.0,102210.0,0.71432842]
[1762582205578,0.003,102220.0,102210.0,0.95892842]
[1762582205771,0.003,102220.0,102210.0,0.71432842]
[1762582205970,0.003,102220.0,102210.0,0.95892842]
[1762582206178,0.003,102220.0,102210.0,1.26260842]
[1762582206478,0.003,102220.0,102210.0,1.50720842]